[Event "Czech Championship 2022"]
[Site "Usti nad Labem"]
[Date "2022.05.22"]
[Round "9.18"]
[White "Paseka, Matyas"]
[Black "Bartos, Jan"]
[Result "0-1"]
[ECO "C09"]
[WhiteElo "2076"]
[BlackElo "2125"]
[Annotator "TA"]
[PlyCount "196"]
[EventDate "2022.05.12"]
[EventType "swiss"]
[EventCountry "CZE"]
[SourceTitle "playchess.com"]
[Source "ChessBase"]
[SourceQuality "1"]
[TimeControl "40/5400+30:1800+30"]

{[%evp 12,196,37,30,27,22,27,26,35,22,20,27,21,18,20,25,24,23,30,34,47,46,45,39,36,32,31,28,46,22,54,53,61,55,62,58,58,79,91,53,61,54,62,58,49,52,86,78,79,81,85,79,80,82,90,84,89,79,87,77,96,54,54,54,54,54,60,54,54,50,63,50,47,47,47,18,63,47,65,70,108,103,103,103,103,72,108,22,77,14,72,0,0,0,0,0,0,0,0,0,0,-12,-12,-16,-16,-16,-16,-20,-20,-20,-20,-20,-20,-20,-20,-20,-20,-20,-20,-152,-152,-208,-28,-208,-152,-208,-208,-208,-12,-20,-20,-20,-20,-20,-20,-208,-152,-208,-208,-208,-208,-208,-208,-208,-208,-29954,-29959,-29961,-29963,-29965,-29966,-29965,-29967,-29965,-29954,-29982,-29981,-29979,-29979,-29985,-29977,-29985,-29986,-29986,-55,-55,-55,-47,-47,-47,-47,-47,-47,-29984,-29985,-29985,-29986,-29986,-29987,-29987,-29988,-29994,-29991,-29993,-29991,-29997,-29998]} 1. e4 {[%emt 0:00:04]} e6 {[%emt 0:00:05]} 2. d4 {[%emt 0:00:06]} d5 {[%emt 0:00:04]} 3. Nd2 {[%emt 0:00:07]} c5 {[%emt 0:00:05]} 4. exd5 {[%emt 0:00:10]} exd5 {[%emt 0:00:05]} 5. Ngf3 {[%emt 0:00:09]} Nc6 {[%emt 0:00:05]} 6. Bb5 {[%emt 0:00:10]} Qe7+ $1 {[%emt 0:00:04][%mdl 4] is more profitable than 6...Bd6 at the moment.} 7. Be2 {[%emt 0:00:10]} Qc7 {[%emt 0:00:04] C09: French Tarrasch: 3...c5 4 exd5 exd5 5 Ngf3 Nc6.} 8. O-O {[%emt 0:00:13]} Nf6 {[%emt 0:00:10]} 9. Re1 {[%emt 0:00:23]} cxd4 {[%emt 0:00:23] White has an edge.} 10. Nb3 {[%emt 0:00:54]} Bb4 {[%emt 0:00:05]} 11. Bd2 {[%emt 0:00:13]} Bxd2 {[%emt 0:00:05]} 12. Qxd2 {[%emt 0:00:07]} O-O {[%emt 0:00:06]} 13. Nfxd4 {[%emt 0:01:02]} Bd7 {[%emt 0:01:39]} 14. Nc5 {[%emt 0:08:50] [#]} Nxd4 $146 {[%emt 0:15:18]} ({Predecessor:} 14... Rad8 15. Nxc6 Bxc6 16. Bf3 Rfe8 17. Nb3 h6 18. Rxe8+ Rxe8 19. Rd1 Ne4 20. Qc1 a5 {½-½ (42) Dunlop,G (2518)-Tauber,H (2501) ICCF email 2020}) 15. Qxd4 {[%emt 0:00:17]} Bf5 {[%emt 0:01:47]} 16. c3 {[%emt 0:02:05]} Rad8 {[%emt 0:11:41]} 17. Rad1 {[%emt 0:05:45]} Rfe8 {[%emt 0:12:35]} 18. f3 {[%emt 0:04:30]} b6 {[%emt 0:08:25]} 19. Nd3 {[%emt 0:02:15]} Qc4 {[%emt 0:08:07]} 20. Nc1 {[%emt 0:01:51]} Qxd4+ {[%emt 0:01:29]} 21. Rxd4 {[%emt 0:00:09]} Bc8 {[%emt 0:00:30]} 22. Kf2 {[%emt 0:01:19]} Bb7 {[%emt 0:02:10]} 23. Red1 {[%emt 0:03:04]} Kf8 {[%emt 0:04:08]} 24. a4 {[%emt 0:03:06]} Rd6 {[%emt 0:01:40]} 25. Bb5 {[%emt 0:04:37]} Red8 {[%emt 0:00:59]} 26. Nb3 {[%emt 0:04:10]} a6 {[%emt 0:02:15]} 27. Bf1 {[%emt 0:02:40]} Nd7 {[%emt 0:02:06]} 28. a5 {[%emt 0:04:33]} Nc5 {[%emt 0:01:02]} 29. Rb4 {[%emt 0:00:15] Nxc5 is the strong threat.} Nxb3 {[%emt 0:01:29]} 30. Rxb3 {[%emt 0:00:08]} b5 {[%emt 0:02:59]} 31. Rb4 {[%emt 0:00:41]} Ke7 {[%emt 0:01:15]} 32. Rbd4 {[%emt 0:01:42]} g5 {[%emt 0:02:28]} 33. h4 {[%emt 0:06:02]} h6 {[%emt 0:00:26]} 34. Bd3 {[%emt 0:00:35]} Kf6 {[%emt 0:01:24]} 35. Rh1 {[%emt 0:01:47]} Bc8 {[%emt 0:06:39]} 36. hxg5+ {[%emt 0:02:32]} hxg5 {[%emt 0:00:09]} 37. Rh6+ {[%emt 0:00:30]} Ke7 {[%emt 0:00:47]} 38. Rh5 {[%emt 0:00:16]} Rg8 {[%emt 0:01:16]} 39. Bc2 {[%emt 0:02:20]} Be6 {[%emt 0:03:33]} 40. Bb3 {[%emt 0:01:12]} Kf6 {[%emt 0:01:09]} 41. f4 {[%emt 0:35:03]} gxf4 {[%emt 0:33:10]} 42. Rxf4+ {[%emt 0:05:58]} Ke7 {[%emt 0:00:54]} 43. Rd4 {[%emt 0:00:18][%cal Rb3d5]} Rgd8 {[%emt 0:01:56]} 44. Kf3 {[%emt 0:00:59]} Kf6 {[%emt 0:01:49]} 45. g4 {[%emt 0:00:38][%cal Bg2g4,Bg4g5][%mdl 32]} Bc8 {[%emt 0:00:00]} 46. Kf4 {[%emt 0:00:00][%cal Rh5d5]} (46. Bxd5 $2 Rxd5 47. Rdxd5 (47. Rhxd5 $2 Rxd5 48. Rxd5 Bb7 $19) 47... Rxd5 48. Rh6+ (48. Rxd5 $2 Bb7 $19) 48... Ke7 $19) 46... Be6 {[%emt 0:00:00]} 47. g5+ {[%emt 0:00:00]} Ke7 {[%emt 0:00:00]} 48. Ke5 {[%emt 0:00:00]} Rg8 {[%emt 0:00:00][%cal Og8g5]} 49. Rf4 {[%emt 0:00:00]} ({Better is} 49. Bxd5 $16 Bxd5 50. Rxd5 Rxg5+ 51. Rxg5 f6+ 52. Ke4 fxg5 53. Rxg5) 49... Rd7 {[%emt 0:00:00]} (49... Rdd8 $11 {keeps the balance.}) 50. Rf6 {[%emt 0:00:00]} (50. Bc2 $16) 50... b4 {[%emt 0:00:00]} (50... Bg4 $11 51. Rhh6 Rxg5+ 52. Kf4 Rg8) 51. Ba4 {[%emt 0:00:00]} (51. g6 $16 bxc3 52. Rh7 (52. bxc3 Rxg6 53. Rxg6 fxg6 $14) 52... cxb2 53. Rxe6+ Kd8 54. gxf7 Rg5+ 55. Kd4 Rg4+ 56. Kc5 Rc7+ 57. Rc6 (57. Kxd5 Rxf7 58. Bc2 Rxh7 $14) (57. Kd6 Rd7+ 58. Kc5 Rc7+ 59. Rc6 Rxc6+ 60. Kxc6 Ke7 $16) 57... Rxc6+ 58. Kxc6) 51... Rc7 $1 $11 {[%emt 0:00:00]} 52. cxb4 {[%emt 0:00:00][%cal Og5g6]} Rc4 {[%emt 0:00:00][%csl Gd5][%cal Rc4e4]} 53. Rxe6+ $1 {[%emt 0:00:00]} fxe6 {[%emt 0:00:00][%csl Gd5][%cal Rc4e4][%mdl 4096] Endgame KRR-KRB} 54. Rh7+ {[%emt 0:00:00]} Kf8 {[%emt 0:00:00]} 55. Kxe6 {[%emt 0:00:00][%csl Ge6][%cal Rh7f7]} Rxg5 {[%emt 0:00:00]} 56. Kf6 {[%emt 0:00:00]} Rg2 {[%emt 0:01:23]} 57. Rh8+ {[%emt 0:00:00]} Rg8 {[%emt 0:00:08]} 58. Rxg8+ {[%emt 0:00:00]} Kxg8 {[%emt 0:00:06] KR-KB} 59. Bb3 {[%emt 0:00:00]} Rxb4 {[%emt 0:00:35]} 60. Bxd5+ {[%emt 0:00:00]} Kf8 {[%emt 0:00:23]} 61. b3 {[%emt 0:00:28]} Rb5 {[%emt 0:00:26][%csl LRa5,LRd5]} 62. Bc4 {[%emt 0:00:10]} Rxa5 {[%emt 0:00:04]} 63. Ke6 {[%emt 0:00:20]} Ra1 {[%emt 0:00:35]} (63... Ke8 $5) 64. Kd6 {[%emt 0:00:10]} a5 {[%emt 0:00:07]} 65. Bb5 {[%emt 0:00:04] [#]} (65. Kc5 $11 {remains equal.}) 65... Rc1 $1 $17 {[%emt 0:00:37]} 66. Ba4 {[%emt 0:00:20]} (66. Kd5 $17 {is a better defense.}) 66... Kf7 $2 {[%emt 0:00:09]} (66... Rc3 $19 67. Ke5 Rc7) 67. Bb5 $2 {[%emt 0:00:34]} (67. Bc6 $1 $11) 67... Kf6 {[%emt 0:00:08]} 68. Ba4 {[%emt 0:00:04]} (68. Kd5 $17 {was necessary.}) 68... Kf5 $19 {[%emt 0:00:53]} 69. Kd5 {[%emt 0:00:05]} Rd1+ $2 {[%emt 0:00:15]} (69... Rc3 $19 {And now ...Kf6 would win.} 70. Kd4 Rc7) 70. Kc4 {[%emt 0:00:38]} Ke5 {[%emt 0:00:11]} 71. Kb5 {[%emt 0:00:28]} Rd5+ {[%emt 0:00:31]} 72. Kc4 {[%emt 0:00:04]} Rd8 {[%emt 0:00:52] aiming for ...Rb8.} (72... Kd6 $5 73. b4 axb4 $11) 73. Kc3 $2 {[%emt 0:01:01]} (73. Kb5 $11) 73... Rb8 {[%emt 0:00:17]} 74. Bd7 {[%emt 0:00:31]} (74. Kb2 $17 {might work better.}) 74... Kd6 {[%emt 0:00:17]} 75. Bf5 {[%emt 0:00:19]} Kc5 {[%emt 0:00:09] ( -> ...Re8)} 76. Be6 {[%emt 0:01:22]} Rf8 {[%emt 0:00:10]} 77. Bg4 {[%emt 0:02:24]} Rf2 {[%emt 0:00:17]} 78. Bd1 $2 {[%emt 0:00:18] [#]} (78. Be6 $19) 78... Rg2 $1 {[%emt 0:00:13]} 79. Bc2 {[%emt 0:00:32]} Rg3+ {[%emt 0:00:08]} 80. Kb2 {[%emt 0:00:12]} Kb4 {[%emt 0:00:09]} 81. Be4 {[%emt 0:00:51]} Rxb3+ {[%emt 0:00:07]} 82. Ka2 {[%emt 0:00:07]} Re3 {[%emt 0:00:11]} 83. Bb1 {[%emt 0:00:46]} Re2+ {[%emt 0:03:07]} 84. Ka1 {[%emt 0:00:05]} a4 {[%emt 0:00:25][%cal Ba5a4,Ba4a3][%mdl 32]} 85. Bd3 {[%emt 0:00:08]} Rd2 {[%emt 0:00:14]} 86. Bb1 {[%emt 0:00:15]} a3 {[%emt 0:00:21]} 87. Ba2 {[%emt 0:00:20]} Kc3 $2 {[%emt 0:00:48]} (87... Rd1+ {mates} 88. Bb1 Re1 89. Ka2 Re2+ 90. Ka1 Kb3 91. Bh7 a2 92. Bg8+ Ka3 93. Bxa2 Rxa2+ 94. Kb1 Rd2 95. Kc1 Rd6 96. Kc2 Kb4 97. Kb2 Rc6 98. Ka1 Ka3 99. Kb1 Kb3 100. Ka1 Rc1#) 88. Bf7 {[%emt 0:01:52]} Rb2 {[%emt 0:00:47]} 89. Be6 {[%emt 0:00:21]} Re2 {[%emt 0:00:30]} 90. Bf7 {[%emt 0:00:11]} Rf2 {[%emt 0:01:51]} 91. Be6 {[%emt 0:01:03]} Rf6 {[%emt 0:00:44]} 92. Ba2 $2 {[%emt 0:00:09][%mdl 8192]} (92. Bg8 $15 Kb4 93. Bd5) 92... Rf1+ {[%emt 0:00:25] Black mates.} 93. Bb1 {[%emt 0:00:05]} Kb4 {[%emt 0:00:07]} 94. Ka2 {[%emt 0:00:05]} Rf2+ {[%emt 0:00:08]} 95. Ka1 {[%emt 0:00:22]} Kb3 {[%emt 0:00:13]} 96. Bd3 {[%emt 0:01:40]} a2 {[%emt 0:01:04]} 97. Be2 {[%emt 0:00:55]} Ka3 {[%emt 0:00:24]} 98. Bd1 {[%emt 0:00:07]} Rg2 {[%emt 0:00:24] Weighted Error Value: White=0.12 (very precise) /Black=0.10 (very precise)} 0-1

[Event "Czech Championship 2022"]
[Site "Usti nad Labem"]
[Date "2022.05.22"]
[Round "9.19"]
[White "Hrbek, Stepan"]
[Black "Hladky, Tadeas"]
[Result "1-0"]
[ECO "E36"]
[WhiteElo "2303"]
[BlackElo "2119"]
[Annotator "TA"]
[PlyCount "59"]
[EventDate "2022.05.12"]
[EventType "swiss"]
[EventCountry "CZE"]
[SourceTitle "playchess.com"]
[Source "ChessBase"]
[SourceQuality "1"]
[TimeControl "40/5400+30:1800+30"]

{[%evp 9,59,-3,52,29,44,22,60,8,37,22,54,47,34,43,48,26,22,22,77,75,69,68,95,102,100,77,83,52,121,121,158,160,171,145,345,203,212,223,283,290,335,333,467,483,479,378,772,750,958,934,29987,29988]} 1. d4 {[%emt 0:00:03]} Nf6 {[%emt 0:01:57]} 2. c4 {[%emt 0:00:09]} e6 {[%emt 0:00:06]} 3. Nc3 {[%emt 0:00:07]} Bb4 {[%emt 0:00:05]} 4. Qc2 {[%emt 0:00:09]} d5 {[%emt 0:00:37]} 5. a3 {[%emt 0:00:15]} Be7 {[%emt 0:02:15]} (5... Bxc3+ $11 6. Qxc3 dxc4) 6. cxd5 {[%emt 0:01:42] E36: Nimzo-Indian: Classical: 4...d5 5 a3.} Nxd5 {[%emt 0:02:54]} 7. e4 {[%emt 0:01:53]} Nxc3 {[%emt 0:00:09]} 8. bxc3 {[%emt 0:06:00]} (8. Qxc3 $14 Bd7 9. Bd3) 8... b6 {[%emt 0:00:36]} 9. Nf3 {[%emt 0:01:33]} Bb7 {[%emt 0:00:17]} 10. Bb5+ {[%emt 0:00:41]} c6 {[%emt 0:00:09][%cal Bc7c6,Bc6c5][%mdl 32]} 11. Bd3 {[%emt 0:00:05]} O-O {[%emt 0:00:06] [#]} 12. Bf4 $146 {[%emt 0:01:53]} ({Predecessor:} 12. e5 h6 13. Qe2 c5 14. Bc2 f5 15. exf6 Rxf6 16. Qd3 Bxf3 17. Qh7+ Kf7 18. gxf3 {½-½ (28) Najafiyan Pour,M (2162)-Hakimifard,G (2290) Teheran 2016}) 12... c5 {[%emt 0:00:25]} 13. O-O {[%emt 0:01:21][%cal Od4d5]} Nd7 {[%emt 0:03:19] [#]} (13... Qc8 $11 {keeps the balance.}) 14. d5 $1 $36 {[%emt 0:12:51][%mdl 2048] White is really pushing.} exd5 {[%emt 0:12:02]} 15. exd5 {[%emt 0:00:09]} h6 {[%emt 0:04:39]} 16. c4 {[%emt 0:00:58] White is much more active. The black rooks are badly placed.} Nf6 {[%emt 0:01:59][%cal Ob6b5]} 17. Rfe1 {[%emt 0:07:20] Black must now prevent Qd2.} Bd6 {[%emt 0:01:29]} 18. Bd2 {[%emt 0:00:22]} Bc8 {[%emt 0:03:03]} ({Black should play} 18... b5 $14) 19. Bc3 {[%emt 0:02:23]} Nh5 {[%emt 0:03:56]} 20. g3 {[%emt 0:05:15][%cal Bg2g3,Bg3g4][%mdl 32]} Bd7 {[%emt 0:10:30]} 21. Ne5 {[%emt 0:03:53]} Be8 $2 {[%emt 0:07:10] Black cannot hold the game after this.} (21... Bxe5 $16 22. Rxe5 Nf6) 22. f4 {[%emt 0:04:42]} (22. Ng4 $142 {[%cal Og4h6] And now Nxh6+! would win.} f5 23. Bxf5) 22... Nf6 $18 {[%emt 0:00:55]} 23. a4 {[%emt 0:03:16]} Rb8 {[%emt 0:01:51]} 24. Qg2 {[%emt 0:02:06]} a6 {[%emt 0:01:45]} 25. g4 {[%emt 0:02:43]} g6 {[%emt 0:01:46]} (25... b5 $142 26. g5 hxg5) 26. Qh3 {[%emt 0:16:09]} h5 {[%emt 0:01:14]} 27. Kh1 {[%emt 0:05:24]} Bxe5 $2 {[%emt 0:05:21]} (27... Bd7 28. Qg2 Nxg4) 28. Rxe5 {[%emt 0:01:42][%cal Rg4h5]} ({Not} 28. Bxe5 Nxg4 29. Qg3 Nxe5 30. fxe5 f5 $16) 28... Bd7 {[%emt 0:02:28]} 29. Rg5 {[%emt 0:08:24][%cal Od3g6] [#] Hoping for Bxg6!} Nxg4 {[%emt 0:03:41]} 30. Qxh5 {[%emt 0:00:36] Weighted Error Value: White=0.23 (precise) /Black=0.71} 1-0

[Event "Czech Championship 2022"]
[Site "Usti nad Labem"]
[Date "2022.05.22"]
[Round "9.20"]
[White "Ocelak, Jakub"]
[Black "Pokrupa, Marek"]
[Result "1-0"]
[ECO "D93"]
[WhiteElo "2060"]
[BlackElo "2117"]
[Annotator "TA"]
[PlyCount "111"]
[EventDate "2022.05.12"]
[EventType "swiss"]
[EventCountry "CZE"]
[SourceTitle "playchess.com"]
[Source "ChessBase"]
[SourceQuality "1"]
[TimeControl "40/5400+30:1800+30"]

{[%evp 16,111,10,8,47,43,50,25,116,118,117,99,102,50,114,98,96,77,75,77,59,54,81,75,81,64,109,94,118,80,91,58,58,41,30,25,28,22,53,58,66,65,80,94,89,54,56,53,73,58,56,51,49,49,50,56,55,58,89,71,180,179,180,140,145,139,126,126,111,120,130,130,173,166,183,179,186,186,186,178,172,169,171,128,202,162,199,206,237,0,172,156,214,206,254,250,972,956]} 1. d4 {[%emt 0:00:04]} Nf6 {[%emt 0:00:05]} 2. Nf3 {[%emt 0:00:04]} g6 {[%emt 0:00:04]} 3. c4 {[%emt 0:00:04]} Bg7 {[%emt 0:01:14]} 4. Nc3 {[%emt 0:00:06]} d5 {[%emt 0:02:49]} 5. Qb3 {[%emt 0:00:19]} c6 {[%emt 0:09:03]} 6. Bf4 {[%emt 0:11:34]} O-O {[%emt 0:20:13]} 7. e3 {[%emt 0:04:57]} Qa5 {[%emt 0:02:00]} 8. Nd2 {[%emt 0:11:00]} Nbd7 {[%emt 0:05:28]} 9. Be2 {[%emt 0:05:22]} Ne4 {[%emt 0:19:40] D93: Grünfeld: 4 Nf3 Bg7 5 Bf4 0-0 6 e3.} 10. Ndxe4 {[%emt 0:15:06]} dxe4 {[%emt 0:00:09]} 11. O-O {[%emt 0:01:27] [#]} Nf6 $146 {[%emt 0:03:05]} (11... g5 $11 12. Bg3 f5) ({Predecessor:} 11... f5 12. Rfd1 h6 13. h4 Kh7 14. d5 Nc5 15. Qc2 Bd7 16. Rab1 Bxc3 17. bxc3 cxd5 18. Rxd5 {0-1 (38) Zilberman,Y (2560)-Bykhovsky,A (2400) Rishon Le Ziyyon 1997}) 12. Be5 {[%emt 0:01:03]} c5 {[%emt 0:02:39]} 13. d5 {[%emt 0:02:27] White is more active.} Qb6 {[%emt 0:03:00]} 14. Qa3 {[%emt 0:04:35]} (14. Qc2 $16) 14... Bf5 {[%emt 0:04:46]} ({Black should try} 14... Qb4 $14) 15. Na4 {[%emt 0:02:29]} Qb4 {[%emt 0:02:56]} 16. Nxc5 {[%emt 0:01:35]} Qxa3 {[%emt 0:01:29]} 17. bxa3 {[%emt 0:00:10]} b6 {[%emt 0:00:10]} 18. Nb3 {[%emt 0:02:16]} Rac8 {[%emt 0:01:28]} 19. Rac1 {[%emt 0:04:48]} Rfd8 {[%emt 0:02:52]} 20. a4 {[%emt 0:03:41]} h5 {[%emt 0:05:16]} 21. a5 {[%emt 0:00:40]} e6 {[%emt 0:00:41]} 22. axb6 {[%emt 0:02:29]} axb6 {[%emt 0:01:26]} 23. dxe6 {[%emt 0:01:49]} Bxe6 {[%emt 0:00:07]} 24. Nd4 {[%emt 0:00:08]} Bg4 {[%emt 0:02:07]} 25. f3 {[%emt 0:04:35]} exf3 {[%emt 0:00:38]} 26. gxf3 {[%emt 0:00:03]} Bh3 {[%emt 0:01:20] [#] aiming for ...Re8.} 27. Rfd1 {[%emt 0:03:19]} Re8 {[%emt 0:01:38]} 28. Bf4 {[%emt 0:01:48]} Nh7 {[%emt 0:01:32]} 29. Kf2 {[%emt 0:01:45]} Bf8 {[%emt 0:00:53]} 30. Nb3 {[%emt 0:01:12]} Ra8 {[%emt 0:02:40]} 31. Rc2 {[%emt 0:00:59]} Nf6 {[%emt 0:01:16]} 32. Bc7 {[%emt 0:06:14]} Nd7 $1 {[%emt 0:01:16]} 33. Kg3 $36 {[%emt 0:00:11][%mdl 2048] White has the initiative.} Be6 {[%emt 0:00:31]} 34. Nd4 {[%emt 0:00:10]} Ra7 {[%emt 0:00:29]} 35. Bf4 {[%emt 0:01:22]} Nc5 {[%emt 0:00:21]} 36. Rb1 {[%emt 0:02:49][%cal Bd1b1,Bb1b6,Bb6b5][%mdl 32]} Nd7 {[%emt 0:00:44]} 37. Rd2 {[%emt 0:01:47]} Nf6 {[%emt 0:00:21]} (37... Rc8 $16) 38. Rxb6 $18 {[%emt 0:00:45]} Nd7 {[%emt 0:00:26]} 39. Rb5 {[%emt 0:01:08]} Nc5 {[%emt 0:00:07]} 40. Nb3 {[%emt 0:01:31]} Rc8 {[%emt 0:00:59]} 41. Nxc5 {[%emt 0:30:51]} Bxc5 {[%emt 0:30:02]} 42. Kf2 {[%emt 0:00:00]} Ra4 {[%emt 0:00:00]} 43. Be5 {[%emt 0:00:00][%cal Ob5c5] Threatens to win with Rxc5!} Bf8 {[%emt 0:00:00] [#]} 44. c5 $1 {[%emt 0:00:00]} Rxa2 {[%emt 0:00:00]} 45. Rxa2 {[%emt 0:00:00]} Bxa2 {[%emt 0:00:00]} 46. Bd4 {[%emt 0:00:00]} Be6 {[%emt 0:00:00]} 47. Ra5 {[%emt 0:00:00]} Be7 {[%emt 0:00:00]} 48. Bd3 {[%emt 0:00:00]} Kf8 {[%emt 0:00:00]} 49. Ke2 {[%emt 0:00:00]} Ke8 {[%emt 0:00:00]} (49... Bd8 $16 50. Ra1 Be7) 50. Kd2 {[%emt 0:00:00]} Bd8 {[%emt 0:00:00]} 51. Ra7 {[%emt 0:00:00]} Be7 {[%emt 0:00:00]} 52. Ra5 {[%emt 0:00:04]} Bd8 $1 {[%emt 0:00:00]} 53. Ra1 {[%emt 0:00:47]} Bd7 {[%emt 0:00:00]} (53... Be7 $16) 54. Be4 {[%emt 0:02:59]} Be7 {[%emt 0:01:58]} 55. Bb7 {[%emt 0:01:25]} Rxc5 {[%emt 0:00:58]} (55... Rc7 56. Ra8+ Bd8) 56. Ra8+ {[%emt 0:04:33] Weighted Error Value: White=0.15 (very precise) /Black=0.22 (precise)} 1-0

[Event "Czech Championship 2022"]
[Site "Usti nad Labem"]
[Date "2022.05.22"]
[Round "9.21"]
[White "Ret, Adam Josef"]
[Black "Sykora, Ondrej"]
[Result "1/2-1/2"]
[ECO "D26"]
[WhiteElo "2093"]
[BlackElo "2092"]
[Annotator "TA"]
[PlyCount "61"]
[EventDate "2022.05.12"]
[EventType "swiss"]
[EventCountry "CZE"]
[SourceTitle "playchess.com"]
[Source "ChessBase"]
[SourceQuality "1"]
[TimeControl "40/5400+30:1800+30"]

{[%evp 18,61,8,0,8,-14,9,-27,-17,-33,0,-14,-6,-60,20,0,4,14,10,0,0,0,20,26,23,12,22,0,48,0,0,0,4,-6,0,0,0,0,0,0,0,0,-5,-5,0,-3]} 1. d4 {[%emt 0:05:41]} Nf6 {[%emt 0:00:46]} 2. c4 {[%emt 0:00:36]} c5 {[%emt 0:00:05]} 3. e3 {[%emt 0:00:35]} cxd4 {[%emt 0:04:10]} 4. exd4 {[%emt 0:00:05]} d5 {[%emt 0:00:08]} 5. h3 {[%emt 0:05:44]} Nc6 {[%emt 0:01:47]} 6. Nf3 {[%emt 0:00:05]} e6 {[%emt 0:04:46]} 7. Nc3 {[%emt 0:00:36]} dxc4 {[%emt 0:00:41]} 8. Bxc4 {[%emt 0:01:16]} Be7 {[%emt 0:00:58]} 9. a3 {[%emt 0:00:41]} O-O {[%emt 0:00:27]} 10. O-O {[%emt 0:00:10]} a6 {[%emt 0:01:26] D26: Queen's Gambit Accepted: 4 e3 e6 5 Bxc5 c5 sidelines.} 11. Bb3 {[%emt 0:12:23] [#]} b5 $146 {[%emt 0:03:27]} ({Predecessor:} 11... b6 12. Re1 Bb7 13. Bc2 Qc7 14. Bg5 Rfd8 15. Qd3 g6 16. Bh4 Rd7 17. Qe3 Rad8 18. Rad1 {1-0 (57) Galvis,A (1783)-Molano,W (1693) Pereira 2021}) 12. Qd3 {[%emt 0:04:49]} Bb7 {[%emt 0:11:05] Black has an edge.} 13. Bc2 {[%emt 0:07:04][%cal Od4d5]} g6 {[%emt 0:03:42]} 14. Bh6 {[%emt 0:03:40]} Re8 {[%emt 0:00:04]} 15. Qe3 {[%emt 0:01:30]} ({White should try} 15. Rac1 $11) 15... b4 {[%emt 0:06:44]} (15... Rc8 $15) 16. axb4 $11 {[%emt 0:05:29]} Nxb4 {[%emt 0:01:37]} 17. Ba4 $36 {[%emt 0:00:27][%mdl 2048] White is pushing.} Bc6 $1 {[%emt 0:02:00]} 18. Bxc6 {[%emt 0:04:01]} Nxc6 {[%emt 0:00:01]} 19. Rfd1 {[%emt 0:06:07]} Nb4 {[%emt 0:06:17]} 20. Qe2 {[%emt 0:01:02] Against Nc2} Qb6 {[%emt 0:06:45]} 21. Ne5 {[%emt 0:02:26]} Qb7 {[%emt 0:01:59]} 22. Ra4 {[%emt 0:10:28]} Red8 {[%emt 0:09:51]} (22... Rec8 $11 {should be considered.}) 23. Nc4 {[%emt 0:09:58]} (23. Re1 $1 $14) 23... Rac8 {[%emt 0:04:52] The position is equal.} 24. Ne5 {[%emt 0:00:47]} Ne8 {[%emt 0:11:03][%cal Bf6e8,Be8c7,Bc7d5][%mdl 32]} 25. Ne4 {[%emt 0:07:53] [#] Black must now prevent Qf3.} Qb5 {[%emt 0:00:45]} 26. Qxb5 {[%emt 0:01:00]} axb5 {[%emt 0:00:41]} 27. Ra7 {[%emt 0:00:18]} Rc7 {[%emt 0:00:14]} 28. Rxc7 {[%emt 0:02:28]} Nxc7 {[%emt 0:00:05]} 29. Rc1 {[%emt 0:01:57]} Ncd5 {[%emt 0:01:26]} 30. Nc6 {[%emt 0:02:12]} Nxc6 {[%emt 0:00:51]} 31. Rxc6 {[%emt 0:00:03] A balanced but interesting game.  Weighted Error Value: White=0.12 (very precise) /Black=0.17 (very precise)} 1/2-1/2